[Event "58th Akiba Rubinstein D 2022"]
[Site "Polanica-Zdroj"]
[Date "2022.08.15"]
[Round "3.22"]
[White "Gawlik, Olivier"]
[Black "Galuszka, Kamil"]
[Result "0-1"]
[ECO "C10"]
[WhiteElo "1384"]
[BlackElo "1976"]
[Annotator "TA"]
[PlyCount "68"]
[EventDate "2022.08.13"]
[EventCountry "POL"]
[SourceTitle "playchess.com"]
[Source "ChessBase"]
[SourceQuality "1"]
[TimeControl "40/5400+30:1800+30"]

{[%evp 12,68,27,28,45,24,54,22,14,21,24,0,0,0,2,6,27,1,3,0,14,0,6,-14,-17,-3,0,0,16,-6,44,-22,-8,-37,-43,-39,-8,-62,-24,-16,0,0,-17,-17,-17,-20,-25,-33,-35,-41,-35,-212,-207,-483,0,-70,0,-486,-478]} 1. e4 {[%emt 0:00:11]} e6 {[%emt 0:00:01]} 2. d4 {[%emt 0:00:16]} d5 {[%emt 0:00:02]} 3. Nd2 {[%emt 0:01:06]} dxe4 {[%emt 0:00:06]} 4. Nxe4 {[%emt 0:00:05]} Nd7 {[%emt 0:00:05][%cal Bb8d7,Bd7f6,Bf6d5][%mdl 32]} 5. Nf3 {[%emt 0:01:18]} Ngf6 {[%emt 0:00:09]} 6. Nxf6+ {[%emt 0:00:31]} Nxf6 {[%emt 0:00:06]} 7. c3 {[%emt 0:01:34] is currently scoring better than 7.Bd3.} Bd7 {[%emt 0:06:34] [#] C10: French with 3 Nc3: Unusual Black 3rd moves and 3...dxe4.} 8. Be3 $146 {[%emt 0:07:36]} ({Predecessor:} 8. Ne5 Bd6 9. Be2 c5 10. O-O {½-½ (10) Kovchan,A (2504)-Baklan,V (2590) Hamburg 2005}) 8... Bc6 {[%emt 0:06:37]} 9. Be2 {[%emt 0:05:49]} Bd6 {[%emt 0:04:31] The position is equal.} 10. O-O {[%emt 0:06:12]} O-O {[%emt 0:03:12]} 11. Nd2 {[%emt 0:25:57]} Nd5 {[%emt 0:07:52]} 12. Nc4 {[%emt 0:04:29]} Qh4 {[%emt 0:29:11][%csl Gd6][%cal Rh4h2]} 13. Nxd6 {[%emt 0:05:25] Strongly threatening Nc4.} cxd6 {[%emt 0:03:29]} 14. Qd2 {[%emt 0:10:48]} h6 {[%emt 0:03:25] Prevents Bg5.} 15. Bf3 {[%emt 0:01:05]} Nf6 {[%emt 0:01:08]} 16. Bxc6 {[%emt 0:01:23]} bxc6 {[%emt 0:00:48]} 17. Bf4 {[%emt 0:01:39]} Rfd8 {[%emt 0:00:47]} 18. Bg3 {[%emt 0:00:59]} Qh5 {[%emt 0:00:18]} 19. f3 {[%emt 0:02:11]} Qb5 {[%emt 0:03:08]} 20. Rfe1 {[%emt 0:02:30]} c5 {[%emt 0:01:47]} (20... Nd5 $11) 21. dxc5 {[%emt 0:00:51]} (21. Bh4 $14) 21... dxc5 $11 {[%emt 0:00:21]} 22. Qc2 {[%emt 0:01:05]} c4 {[%emt 0:01:25]} 23. Be5 {[%emt 0:05:04]} Nd5 {[%emt 0:02:50]} 24. Bg3 {[%emt 0:02:38]} (24. Re4 $11) 24... Ne7 {[%emt 0:02:39]} 25. Rad1 $1 {[%emt 0:03:40]} Rd5 {[%emt 0:00:09]} 26. Rxd5 {[%emt 0:00:48]} Nxd5 {[%emt 0:00:02]} 27. a4 {[%emt 0:04:01]} Qc6 {[%emt 0:00:24]} 28. Bf2 {[%emt 0:01:14]} a6 {[%emt 0:00:28]} 29. g3 {[%emt 0:01:35]} Rb8 {[%emt 0:02:32]} 30. f4 {[%emt 0:00:39]} Rb3 {[%emt 0:00:58]} 31. Ra1 $2 {[%emt 0:00:55]} ({Better is} 31. f5 $15) 31... Qb7 $40 {[%emt 0:01:27][%mdl 128] Black wants a kill.} 32. Ra2 {[%emt 0:00:22] [#]} (32. Rb1) 32... Qc6 $2 (32... Nxc3 $1 $19 {[%mdl 512]} 33. Ra3 Rxa3 34. bxa3 Qb3) 33. Ra1 $15 Qb7 $2 {[%mdl 8192] Black is more active.} (33... Nb6 $15 34. Rd1 Qc7) 34. Ra2 $19 {[#]} Nxc3 $1 {[%mdl 512] Weighted Error Value: White=0.33/Black=0.37} 0-1

[Event "58th Akiba Rubinstein D 2022"]
[Site "Polanica-Zdroj"]
[Date "2022.08.15"]
[Round "3.23"]
[White "Boryna, Szymon"]
[Black "Huchwajda, Katarzyna"]
[Result "0-1"]
[ECO "A17"]
[WhiteElo "1434"]
[BlackElo "1768"]
[Annotator "NA RC"]
[PlyCount "102"]
[EventDate "2022.08.13"]
[EventCountry "POL"]
[SourceTitle "playchess.com"]
[Source "ChessBase"]
[SourceQuality "1"]
[TimeControl "40/5400+30:1800+30"]

1. c4 {[%emt 0:00:03]} Nf6 {[%emt 0:00:05]} 2. Nc3 {[%emt 0:00:04]} e6 {[%emt 0:00:04]} 3. e3 {[%emt 0:00:04]} d5 {[%emt 0:00:07]} 4. Nf3 {[%emt 0:00:04]} Bd6 {[%emt 0:01:02]} 5. d4 {[%emt 0:00:40]} b6 {[%emt 0:00:49]} 6. cxd5 {[%emt 0:00:15]} exd5 {[%emt 0:00:35]} 7. Bd3 {[%emt 0:01:23]} O-O {[%emt 0:00:29]} 8. h3 {[%emt 0:01:04]} a6 {[%emt 0:00:58]} 9. O-O {[%emt 0:00:34]} Bb7 {[%emt 0:00:29]} 10. b3 Re8 {[%emt 0:07:00]} 11. Re1 {[%emt 0:01:15]} Ne4 {[%emt 0:03:06]} 12. Bxe4 {[%emt 0:01:57]} dxe4 {[%emt 0:00:11]} 13. Nd2 {[%emt 0:01:01]} Nd7 {[%emt 0:04:02]} 14. Nc4 {[%emt 0:01:22]} Bb4 {[%emt 0:02:41]} 15. Bd2 {[%emt 0:01:34]} b5 {[%emt 0:07:53]} 16. Nb2 Bd6 {[%emt 0:04:47]} 17. a4 {[%emt 0:06:42]} c6 {[%emt 0:02:32]} 18. Ne2 {[%emt 0:08:31]} Re6 {[%emt 0:05:58]} 19. Nf4 {[%emt 0:10:19]} Rh6 {[%emt 0:02:04]} 20. Rc1 {[%emt 0:05:29]} Nf6 {[%emt 0:08:45]} 21. f3 g5 {[%emt 0:04:37]} 22. fxe4 {[%emt 0:07:19]} gxf4 {[%emt 0:04:00]} 23. e5 {[%emt 0:00:04]} Ba3 {[%emt 0:03:55]} 24. Qc2 {[%emt 0:03:09]} Nh5 {[%emt 0:04:50]} 25. exf4 {[%emt 0:00:54]} Qxd4+ {[%emt 0:03:05]} 26. Be3 {[%emt 0:01:53]} Qxb2 {[%emt 0:02:05]} 27. Qxb2 {[%emt 0:01:32]} Bxb2 {[%emt 0:00:05]} 28. Rc2 {[%emt 0:00:10]} Bxe5 {[%emt 0:05:46]} 29. fxe5 {[%emt 0:00:52]} Rg6 {[%emt 0:03:19]} 30. Rd2 {[%emt 0:04:49]} Re8 {[%emt 0:03:20]} 31. g4 {[%emt 0:01:34]} Ng7 {[%emt 0:03:08]} 32. Bb6 {[%emt 0:03:17]} h5 {[%emt 0:02:54]} 33. Red1 {[%emt 0:03:28]} hxg4 34. Rd7 {[%emt 0:01:23]} gxh3+ {[%emt 0:01:39]} 35. Kh2 Bc8 {[%emt 0:01:11]} 36. Rd8 {[%emt 0:01:36]} Rge6 {[%emt 0:01:15]} 37. Rxe8+ {[%emt 0:02:41]} Rxe8 {[%emt 0:00:14]} 38. Rg1 {[%emt 0:00:05]} Rxe5 {[%emt 0:02:11]} 39. Bd4 {[%emt 0:00:24]} Re2+ {[%emt 0:00:07]} 40. Kh1 {[%emt 0:00:04]} Rg2 {[%emt 0:00:32]} 41. Rd1 {[%emt 0:30:30]} Bg4 {[%emt 0:33:24]} 42. Rf1 {[%emt 0:01:42]} Nf5 43. Be5 {[%emt 0:00:19]} Ng3+ {[%emt 0:01:24]} 44. Bxg3 {[%emt 0:00:07]} Rxg3 {[%emt 0:00:03]} 45. axb5 {[%emt 0:00:25]} axb5 {[%emt 0:00:22]} 46. b4 {[%emt 0:00:19]} Rb3 {[%emt 0:00:40]} 47. Rf4 {[%emt 0:00:18]} f5 {[%emt 0:00:44]} 48. Rd4 {[%emt 0:00:23]} Rc3 {[%emt 0:00:26]} 49. Rd6 {[%emt 0:00:29]} Rb3 50. Rd4 Rc3 51. Rd6 Rc2 0-1

[Event "58th Akiba Rubinstein D 2022"]
[Site "Polanica-Zdroj"]
[Date "2022.08.15"]
[Round "3.24"]
[White "Grzebieniowski, Michal"]
[Black "Wieczorek, Maja"]
[Result "1-0"]
[ECO "E69"]
[WhiteElo "1710"]
[BlackElo "1260"]
[Annotator "NA RC"]
[PlyCount "179"]
[EventDate "2022.08.13"]
[EventCountry "POL"]
[SourceTitle "playchess.com"]
[Source "ChessBase"]
[SourceQuality "1"]
[TimeControl "40/5400+30:1800+30"]

1. d4 {[%emt 0:00:01]} Nf6 {[%emt 0:00:06]} 2. c4 {[%emt 0:00:05]} g6 {[%emt 0:00:05]} 3. Nf3 {[%emt 0:00:05]} Bg7 {[%emt 0:00:10]} 4. g3 {[%emt 0:00:04]} O-O {[%emt 0:00:10]} 5. Bg2 {[%emt 0:00:03]} d6 {[%emt 0:00:13]} 6. O-O {[%emt 0:00:08]} Nbd7 {[%emt 0:00:07]} 7. Nc3 {[%emt 0:00:12]} c6 {[%emt 0:00:13]} 8. e4 {[%emt 0:01:27]} e5 {[%emt 0:00:24]} 9. h3 {[%emt 0:00:03]} a5 {[%emt 0:01:03]} 10. Be3 {[%emt 0:00:07]} exd4 {[%emt 0:01:27]} 11. Nxd4 {[%emt 0:00:07]} Nc5 {[%emt 0:00:17]} 12. Qc2 {[%emt 0:00:45]} Bd7 {[%emt 0:01:51]} 13. Rfd1 {[%emt 0:02:41]} Bc8 {[%emt 0:00:00]} 14. Rf1 {[%emt 0:00:00]} Bd7 {[%emt 0:01:00]} 15. Rfd1 {[%emt 0:01:13]} Bc8 {[%emt 0:00:00]} 16. Rf1 {[%emt 0:00:00]} Bd7 {[%emt 0:01:00]} 17. Rfd1 {[%emt 0:01:00]} Bc8 {[%emt 0:00:00]} 18. Rf1 {[%emt 0:00:00]} Bd7 {[%emt 0:01:00]} 19. Rfd1 {[%emt 0:01:00]} Bc8 {[%emt 0:00:00]} 20. Rf1 {[%emt 0:00:00]} Bd7 {[%emt 0:01:00]} 21. Rfd1 Qc8 {[%emt 0:04:24]} 22. Kh2 {[%emt 0:00:56]} Qd8 {[%emt 0:00:00]} 23. Kg1 {[%emt 0:00:30]} Qc8 {[%emt 0:01:00]} 24. Kh2 {[%emt 0:00:30]} Qd8 {[%emt 0:00:00]} 25. Kg1 {[%emt 0:00:30]} Qc8 {[%emt 0:01:00]} 26. Kh2 {[%emt 0:00:30]} Qc7 {[%emt 0:02:19]} 27. Kg1 {[%emt 0:00:51]} Qc8 {[%emt 0:00:00]} 28. Kh2 {[%emt 0:00:09]} Qc7 {[%emt 0:01:00]} 29. Kg1 {[%emt 0:00:51]} Qc8 {[%emt 0:00:00]} 30. Kh2 {[%emt 0:00:09]} Qc7 {[%emt 0:01:00]} 31. Kg1 {[%emt 0:00:51]} Qc8 {[%emt 0:00:00]} 32. Kh2 {[%emt 0:00:09]} Qc7 {[%emt 0:01:00]} 33. Nde2 {[%emt 0:11:31]} Qd8 {[%emt 0:00:00]} 34. Nd4 {[%emt 0:00:00]} Qc7 {[%emt 0:01:00]} 35. Nde2 {[%emt 0:01:00]} Ne8 {[%emt 0:09:32]} 36. Nd4 {[%emt 0:00:00]} Nf6 {[%emt 0:00:00]} 37. Nde2 {[%emt 0:01:00]} Ne8 {[%emt 0:01:00]} 38. Nd4 {[%emt 0:00:00]} Nf6 {[%emt 0:00:00]} 39. Nde2 {[%emt 0:01:00]} Ne8 {[%emt 0:01:00]} 40. Bxc5 {[%emt 0:06:06]} dxc5 {[%emt 0:00:12]} 41. Na4 h5 {[%emt 0:38:09]} 42. Nxc5 {[%emt 0:30:19]} Bc8 {[%emt 0:00:19]} 43. Nd3 {[%emt 0:07:15]} Kh7 {[%emt 0:03:05]} 44. Nc5 {[%emt 0:00:00]} Kg8 {[%emt 0:00:00]} 45. Nd3 {[%emt 0:01:00]} Kh7 {[%emt 0:01:00]} 46. Rac1 {[%emt 0:03:33]} Kg8 {[%emt 0:00:00]} 47. Ra1 {[%emt 0:00:00]} Kh7 {[%emt 0:01:00]} 48. Rac1 {[%emt 0:00:00]} Rh8 {[%emt 0:01:52]} 49. Ra1 {[%emt 0:00:00]} Rf8 {[%emt 0:00:00]} 50. Rac1 {[%emt 0:03:23]} Rh8 {[%emt 0:01:00]} 51. Ra1 {[%emt 0:00:00]} Rf8 {[%emt 0:00:00]} 52. Rac1 {[%emt 0:01:00]} Rh8 {[%emt 0:01:00]} 53. Ra1 {[%emt 0:00:00]} Rf8 {[%emt 0:00:00]} 54. Rac1 {[%emt 0:01:00]} Rh8 {[%emt 0:01:00]} 55. Ra1 {[%emt 0:00:00]} Rf8 {[%emt 0:00:00]} 56. Rac1 {[%emt 0:01:00]} Rh8 {[%emt 0:01:00]} 57. Ra1 {[%emt 0:00:00]} Rf8 {[%emt 0:00:00]} 58. Rac1 {[%emt 0:01:00]} Rh8 {[%emt 0:01:00]} 59. h4 {[%emt 0:10:22]} Kg8 {[%emt 0:01:40]} 60. f4 {[%emt 0:02:57]} Nf6 61. Nf2 {[%emt 0:02:19]} Ng4+ {[%emt 0:14:04]} 62. Nxg4 {[%emt 0:00:00]} Bxg4 {[%emt 0:00:00]} 63. Rd2 {[%emt 0:02:58]} Bc8 {[%emt 0:00:00]} 64. Rdd1 {[%emt 0:00:00]} Bg4 {[%emt 0:00:00]} 65. Rd2 {[%emt 0:01:00]} Bc8 {[%emt 0:00:00]} 66. Rdd1 {[%emt 0:00:00]} Bg4 {[%emt 0:00:00]} 67. Rd2 Re8 {[%emt 0:00:00]} 68. Nc3 {[%emt 0:04:47]} Ra8 {[%emt 0:00:00]} 69. Ne2 Re8 {[%emt 0:00:38]} 70. Nc3 {[%emt 0:01:00]} Ra8 {[%emt 0:00:00]} 71. Ne2 Re8 {[%emt 0:01:00]} 72. Nc3 {[%emt 0:01:00]} Bh6 {[%emt 0:06:36]} 73. e5 {[%emt 0:01:42]} Bf5 {[%emt 0:10:50]} 74. Be4 {[%emt 0:00:16]} Bg4 {[%emt 0:00:00]} 75. Bg2 {[%emt 0:00:44]} Bf5 {[%emt 0:01:00]} 76. Be4 {[%emt 0:00:16]} Bg4 {[%emt 0:00:00]} 77. Bg2 {[%emt 0:00:44]} Bf5 {[%emt 0:01:00]} 78. Be4 {[%emt 0:00:16]} Qc8 {[%emt 0:02:46]} 79. Bxf5 {[%emt 0:03:41]} gxf5 {[%emt 0:00:15]} 80. Rcd1 {[%emt 0:00:17]} Kg7 {[%emt 0:06:20]} 81. Rd7 {[%emt 0:01:34]} Rd8 {[%emt 0:06:29]} 82. Qxf5 {[%emt 0:00:09]} Rhf8 {[%emt 0:02:52]} 83. Qf6+ {[%emt 0:00:12]} Kh7 {[%emt 0:00:35]} 84. Qf5+ {[%emt 0:00:48]} Kg7 {[%emt 0:00:25]} 85. Qf6+ {[%emt 0:00:12]} Kh7 {[%emt 0:00:35]} 86. Rxd8 {[%emt 0:00:19]} Qg4 {[%emt 0:01:37]} 87. Rxf8 {[%emt 0:00:27]} Bxf8 {[%emt 0:01:00]} 88. Qxf7+ {[%emt 0:00:06]} Bg7 {[%emt 0:00:07]} 89. Rd7 {[%emt 0:00:17]} b5 {[%emt 0:01:19]} 90. Qxg7+ {[%emt 0:00:03]} 1-0

[Event "58th Akiba Rubinstein D 2022"]
[Site "Polanica-Zdroj"]
[Date "2022.08.15"]
[Round "3.25"]
[White "Tarlowski, Bartosz"]
[Black "Bialik, Nikodem"]
[Result "0-1"]
[ECO "A56"]
[WhiteElo "1324"]
[BlackElo "1638"]
[Annotator "NA RC"]
[PlyCount "51"]
[EventDate "2022.08.13"]
[EventCountry "POL"]
[SourceTitle "playchess.com"]
[Source "ChessBase"]
[SourceQuality "1"]
[TimeControl "40/5400+30:1800+30"]

1. d4 {[%emt 0:00:02]} Nf6 {[%emt 0:09:55]} 2. c4 {[%emt 0:00:05]} c5 {[%emt 0:00:08]} 3. Nf3 g6 {[%emt 0:02:07]} 4. e3 {[%emt 0:03:31]} Bg7 {[%emt 0:00:40]} 5. Nc3 {[%emt 0:01:07]} O-O {[%emt 0:01:31]} 6. Bd3 {[%emt 0:06:24]} d6 {[%emt 0:01:53]} 7. h3 {[%emt 0:00:12]} Nc6 {[%emt 0:01:10]} 8. O-O {[%emt 0:02:53]} Bd7 {[%emt 0:02:38]} 9. a3 {[%emt 0:04:50]} a6 {[%emt 0:03:58]} 10. d5 {[%emt 0:20:19]} Na7 {[%emt 0:00:38]} 11. Qe2 {[%emt 0:00:57]} e6 {[%emt 0:02:50]} 12. dxe6 {[%emt 0:01:32]} fxe6 {[%emt 0:00:21]} 13. e4 {[%emt 0:00:18]} Nc6 {[%emt 0:14:38]} 14. Rd1 {[%emt 0:15:55]} Qc7 15. Rb1 {[%emt 0:06:25]} Nh5 {[%emt 0:05:28]} 16. Qc2 {[%emt 0:02:47]} Nd4 {[%emt 0:01:39]} 17. Nxd4 {[%emt 0:01:00]} Bxd4 {[%emt 0:00:06]} 18. Be3 {[%emt 0:01:44]} Bxe3 {[%emt 0:04:37]} 19. fxe3 {[%emt 0:00:58]} Bc6 {[%emt 0:03:41]} 20. Ne2 {[%emt 0:03:58]} Rf7 {[%emt 0:00:35]} 21. Rf1 {[%emt 0:00:19]} Raf8 {[%emt 0:00:13]} 22. Rxf7 {[%emt 0:01:43]} Rxf7 {[%emt 0:01:29]} 23. g4 {[%emt 0:00:30]} Ng7 {[%emt 0:01:40]} 24. Nf4 {[%emt 0:02:19]} Nh5 25. Ne2 Ng7 26. Nf4 0-1

[Event "58th Akiba Rubinstein D 2022"]
[Site "Polanica-Zdroj"]
[Date "2022.08.15"]
[Round "3.26"]
[White "Stepinski, Piotr"]
[Black "Balcerzak, Robert"]
[Result "1-0"]
[ECO "B02"]
[WhiteElo "1568"]
[BlackElo "1357"]
[Annotator "NA RC"]
[PlyCount "89"]
[EventDate "2022.08.13"]
[EventCountry "POL"]
[SourceTitle "playchess.com"]
[Source "ChessBase"]
[SourceQuality "1"]
[TimeControl "40/5400+30:1800+30"]

1. e4 {[%emt 0:00:18]} Nf6 {[%emt 0:00:24]} 2. Nc3 {[%emt 0:01:11]} d5 {[%emt 0:00:54]} 3. exd5 {[%emt 0:01:47]} Nxd5 {[%emt 0:00:52]} 4. Nxd5 {[%emt 0:01:16]} Qxd5 {[%emt 0:00:40]} 5. Nf3 {[%emt 0:00:02]} c5 {[%emt 0:00:52]} 6. Be2 {[%emt 0:01:02]} Nc6 {[%emt 0:00:59]} 7. d3 {[%emt 0:07:36]} e5 {[%emt 0:01:02]} 8. b3 {[%emt 0:00:30]} f6 {[%emt 0:02:52]} 9. Bb2 {[%emt 0:01:17]} Be6 {[%emt 0:02:54]} 10. Qd2 {[%emt 0:14:15]} O-O-O {[%emt 0:08:08]} 11. O-O-O {[%emt 0:07:44]} g5 {[%emt 0:10:13]} 12. h3 {[%emt 0:11:44]} h5 {[%emt 0:05:06]} 13. Kb1 {[%emt 0:00:54]} Bh6 {[%emt 0:12:45]} 14. Qc3 {[%emt 0:14:30]} g4 {[%emt 0:00:30]} 15. hxg4 hxg4 {[%emt 0:01:43]} 16. Nh2 {[%emt 0:18:34]} Qxg2 {[%emt 0:15:10]} 17. Rdg1 {[%emt 0:02:06]} Qxf2 {[%emt 0:01:51]} 18. Nxg4 Qxe2 {[%emt 0:09:54]} 19. Nxh6 {[%emt 0:08:11]} Bd5 {[%emt 0:03:10]} 20. Re1 {[%emt 0:00:51]} Qf2 {[%emt 0:03:57]} 21. Rhf1 {[%emt 0:00:15]} Qh4 {[%emt 0:02:02]} 22. Nf5 Qb4 {[%emt 0:00:16]} 23. Qxb4 {[%emt 0:02:15]} cxb4 {[%emt 0:00:08]} 24. Ne3 {[%emt 0:01:18]} Rhf8 {[%emt 0:01:34]} 25. Ng4 {[%emt 0:00:30]} Rd6 {[%emt 0:03:28]} 26. Bxe5 {[%emt 0:01:20]} Nxe5 {[%emt 0:00:26]} 27. Nxe5 {[%emt 0:00:42]} Re6 {[%emt 0:01:42]} 28. Ng6 {[%emt 0:00:22]} Rxe1+ {[%emt 0:00:59]} 29. Rxe1 {[%emt 0:00:00]} Rf7 {[%emt 0:00:19]} 30. Ne7+ {[%emt 0:00:08]} Rxe7 {[%emt 0:00:45]} 31. Rxe7 {[%emt 0:00:03]} a5 {[%emt 0:01:17]} 32. Kc1 {[%emt 0:00:15]} Kd8 {[%emt 0:00:57]} 33. Rh7 {[%emt 0:00:10]} b5 {[%emt 0:01:25]} 34. Kd2 {[%emt 0:00:54]} Bc6 {[%emt 0:01:22]} 35. Rf7 {[%emt 0:00:18]} f5 {[%emt 0:01:29]} 36. Rxf5 {[%emt 0:00:18]} Kc7 {[%emt 0:00:14]} 37. Rf7+ {[%emt 0:00:16]} Kb6 {[%emt 0:00:19]} 38. c3 {[%emt 0:00:40]} bxc3+ {[%emt 0:01:21]} 39. Kxc3 {[%emt 0:00:05]} b4+ {[%emt 0:01:32]} 40. Kd4 {[%emt 0:00:01]} Be8 {[%emt 0:01:41]} 41. Re7 {[%emt 0:30:24]} Bh5 {[%emt 0:30:39]} 42. Re6+ {[%emt 0:00:16]} Kb7 {[%emt 0:00:20]} 43. Re5 {[%emt 0:00:09]} Bd1 {[%emt 0:00:35]} 44. Rxa5 {[%emt 0:00:06]} Kb6 {[%emt 0:00:07]} 45. Rg5 {[%emt 0:00:11]} 1-0

[Event "58th Akiba Rubinstein D 2022"]
[Site "Polanica-Zdroj"]
[Date "2022.08.15"]
[Round "3.27"]
[White "Kicinski, Igor"]
[Black "Grzelak, Piotr"]
[Result "0-1"]
[ECO "C10"]
[WhiteElo "1302"]
[BlackElo "1684"]
[Annotator "NA RC"]
[PlyCount "118"]
[EventDate "2022.08.13"]
[EventCountry "POL"]
[SourceTitle "playchess.com"]
[Source "ChessBase"]
[SourceQuality "1"]
[TimeControl "40/5400+30:1800+30"]

1. e4 {[%emt 0:00:01]} e6 {[%emt 0:10:13]} 2. d4 {[%emt 0:00:01]} d5 {[%emt 0:00:01]} 3. Nd2 {[%emt 0:00:02]} dxe4 {[%emt 0:00:16]} 4. Nxe4 {[%emt 0:00:02]} Bd7 {[%emt 0:00:10]} 5. Nf3 {[%emt 0:01:14]} Bc6 {[%emt 0:00:07]} 6. Ng3 {[%emt 0:02:58]} Nf6 {[%emt 0:02:44]} 7. Be2 {[%emt 0:00:50]} Bd6 {[%emt 0:01:33]} 8. c3 {[%emt 0:01:14]} Nbd7 {[%emt 0:00:24]} 9. b4 {[%emt 0:02:32]} a6 {[%emt 0:02:10]} 10. a4 {[%emt 0:02:18]} O-O {[%emt 0:00:28]} 11. O-O {[%emt 0:00:22]} Re8 {[%emt 0:01:04]} 12. Bb2 {[%emt 0:02:32]} e5 {[%emt 0:01:16]} 13. dxe5 {[%emt 0:05:53]} Nxe5 {[%emt 0:00:30]} 14. Nf5 {[%emt 0:06:52]} Qd7 {[%emt 0:07:42]} 15. N3d4 {[%emt 0:09:12]} Be4 {[%emt 0:03:41]} 16. Nxd6 {[%emt 0:09:50]} Qxd6 {[%emt 0:00:22]} 17. b5 {[%emt 0:09:37]} Rad8 {[%emt 0:01:40]} 18. Ba3 {[%emt 0:03:29]} Qd5 {[%emt 0:00:48]} 19. f3 {[%emt 0:01:18]} Bg6 {[%emt 0:00:51]} 20. Qb3 Qxb3 {[%emt 0:06:50]} 21. Nxb3 {[%emt 0:06:22]} axb5 {[%emt 0:00:16]} 22. axb5 {[%emt 0:01:29]} Nd5 {[%emt 0:03:50]} 23. Rfc1 {[%emt 0:04:23]} Bd3 {[%emt 0:01:57]} 24. Bxd3 {[%emt 0:05:05]} Nxd3 {[%emt 0:00:03]} 25. Rc2 {[%emt 0:00:42]} N3f4 {[%emt 0:02:24]} 26. Nd4 {[%emt 0:02:25]} Nxc3 {[%emt 0:02:12]} 27. Rxc3 {[%emt 0:13:30]} Rxd4 {[%emt 0:00:22]} 28. Rc2 {[%emt 0:01:30]} h6 {[%emt 0:01:05]} 29. Bc5 {[%emt 0:04:17]} Rd5 {[%emt 0:01:04]} 30. b6 {[%emt 0:04:50]} c6 {[%emt 0:01:05]} 31. Bf2 {[%emt 0:00:36]} Rb5 {[%emt 0:01:34]} 32. Bg3 {[%emt 0:00:29]} Ne2+ {[%emt 0:00:21]} 33. Kf2 {[%emt 0:00:27]} Nxg3 {[%emt 0:00:03]} 34. Kxg3 {[%emt 0:00:01]} Rxb6 {[%emt 0:00:15]} 35. Ra7 {[%emt 0:00:09]} Rb4 {[%emt 0:01:12]} 36. Rd2 {[%emt 0:00:29]} Kf8 {[%emt 0:02:20]} 37. Rd7 {[%emt 0:00:03]} Rb8 {[%emt 0:00:16]} 38. Rc7 {[%emt 0:00:20]} g6 {[%emt 0:00:56]} 39. Kf2 {[%emt 0:00:02]} Kg7 {[%emt 0:00:24]} 40. h3 {[%emt 0:00:11]} Kf6 {[%emt 0:00:08]} 41. g4 {[%emt 0:30:07]} Ke6 {[%emt 0:30:41]} 42. Kg3 {[%emt 0:00:33]} Rb3 {[%emt 0:00:53]} 43. Kf4 {[%emt 0:00:29]} Rb4+ {[%emt 0:06:32]} 44. Kg3 {[%emt 0:00:01]} f5 {[%emt 0:00:26]} 45. Rh7 {[%emt 0:00:47]} f4+ {[%emt 0:00:33]} 46. Kh4 {[%emt 0:00:07]} c5 {[%emt 0:00:58]} 47. Rxh6 {[%emt 0:00:09]} Kf6 {[%emt 0:00:17]} 48. Ra1 {[%emt 0:01:50]} c4 {[%emt 0:03:38]} 49. Rd1 {[%emt 0:00:29]} Rb6 {[%emt 0:02:23]} 50. Rd4 {[%emt 0:02:06]} c3 {[%emt 0:05:24]} 51. g5+ {[%emt 0:01:13]} Ke5 {[%emt 0:00:38]} 52. Re4+ {[%emt 0:00:27]} Kd5 {[%emt 0:01:50]} 53. Rh7 {[%emt 0:00:16]} c2 {[%emt 0:06:54]} 54. Rhe7 {[%emt 0:00:06]} c1=Q {[%emt 0:01:16]} 55. R7e5+ {[%emt 0:00:02]} Kc6 {[%emt 0:00:52]} 56. Re6+ {[%emt 0:00:03]} Kb5 {[%emt 0:02:07]} 57. R6e5+ {[%emt 0:00:01]} Qc5 {[%emt 0:00:27]} 58. Re7 Qc1 59. R7e5+ Qc5 0-1